Cogmind - Beta 10.2 *** ADVENTURER MODE // 2021.10.03 @ 13:00:47 Player: Departed Result: Destroyed by D-53 Grenadier with Mini Grenade Launcher Performance ------------- Evolutions (1) 500 Regions Visited (4) 800 Robots Destroyed (44) 220 Value Destroyed (895) 895 Prototype IDs (0) 0 Alien Tech Used (0) 0 Bonus (0) 0 TOTAL SCORE: 2415 Bonus ------- None Cogmind --------- Core Integrity 0/400 Matter 8/300 Energy 100/100 System Corruption 0% Temperature Cool (0) Movement Walking (240) Ox4 Location -9/Mines Parts ------- > --- POWER (1) -------- (None) > --- PROPULSION (2) --- Improved Aluminum Leg > --- UTILITY (4) ------ High-capacity Storage Unit High-capacity Storage Unit Targeting Computer Targeting Computer > --- WEAPON (2) ------- (None) > --- INVENTORY (20) --- Ion Engine Light Ion Engine Improved Aluminum Leg Improved Aluminum Leg Flight Unit Light EM Pulse Cannon Light EM Pulse Cannon Heavy Assault Rifle Autogun Grenade Launcher Rocket Launcher Peak State ------------ > --- POWER ------------ Improved Ion Engine > --- PROPULSION ------- Improved Aluminum Leg Improved Aluminum Leg > --- UTILITY ---------- High-capacity Storage Unit High-capacity Storage Unit Targeting Computer Targeting Computer > --- WEAPON ----------- Autogun Mini Grenade Launcher > --- INVENTORY -------- Ion Engine Light Ion Engine Improved Aluminum Leg Improved Aluminum Leg Improved Aluminum Leg Improved Aluminum Leg Flight Unit Light EM Pulse Cannon Light EM Pulse Cannon Heavy Assault Rifle Heavy Assault Rifle Autogun Grenade Launcher Rocket Launcher [Rating: 16] Favorites ----------- Power Ion Engine Engine Ion Engine Propulsion Improved Aluminum Leg Leg Improved Aluminum Leg Utility Targeting Computer Storage High-capacity Storage Unit Processor Targeting Computer Weapon Light Cannon Energy Gun EM Pulse Gun Energy Cannon Beam Cannon Ballistic Gun Assault Rifle Ballistic Cannon Light Cannon Launcher Grenade Launcher Build | -11 -10 -10 -9 -9 ------- Run | Scr Mat Min Mat Min Slots Evolved 2 | . . . 2 . Power . | . . . . . Propulsion . | . . . . . Utility 2 | . . . 2 . Weapon . | . . . . . Parts Attached 30 | 6 9 1 11 3 Power 4 | 1 . 1 2 . Engine 4 | 1 . 1 2 . Core . | . . . . . Reactor . | . . . . . Propulsion 9 | 2 3 . 2 2 Treads . | . . . . . Leg 9 | 2 3 . 2 2 Wheel . | . . . . . Hover . | . . . . . Flight . | . . . . . Utility 6 | 1 2 . 3 . Device . | . . . . . Storage 4 | 1 1 . 2 . Processor 2 | . 1 . 1 . Hackware . | . . . . . Protection . | . . . . . Artifact . | . . . . . Weapon 11 | 2 4 . 4 1 Energy Gun 1 | . 1 . . . Energy Cannon 1 | . 1 . . . Ballistic Gun 4 | 2 . . 1 1 Ballistic Cannon 1 | . 1 . . . Launcher 4 | . 1 . 3 . Special Weapon . | . . . . . Impact Weapon . | . . . . . Slashing Weapon . | . . . . . Piercing Weapon . | . . . . . Special Melee Weapon . | . . . . . Unidentified Prototypes . | . . . . . Parts Lost 6 | . . . . 6 Power . | . . . . . Propulsion 3 | . . . . 3 Utility . | . . . . . Weapon 3 | . . . . 3 Highest Loss Streak 6 | . . . . 6 Average Slot Usage (%) 97 | . 99 100 94 83 Engine 10 | . 14 14 6 . Leg 25 | . 28 28 22 19 Storage 16 | . 14 14 22 22 Processor 16 | . 13 14 21 22 Energy Cannon 3 | . 8 . . . Ballistic Gun 6 | . 10 . 5 9 Ballistic Cannon 7 | . 6 14 5 . Launcher 7 | . 2 14 11 9 Naked Turns . | . . . . . Heaviest Build 77 | 13 43 43 77 68 Greatest Support 26 | 20 26 26 26 26 Greatest Overweight (x) 5 | . 2 1 2 5 Average Overweight (x) 1 | . 1 1 2 2 Largest Inventory Capacity 20 | 6 12 12 20 20 Average Capacity 14 | 4 11 12 19 20 Most Carried 15 | 1 11 12 15 14 Average Carried 10 | . 8 11 12 13 Final Capacity 20 | 6 12 12 20 20 Final Carried 14 | 1 11 12 14 11 Class Distribution -------------------- 66% | Mutant 33% | Hauler-Mutant Dominant Class ---------------- Mutant | -10/Materials Mutant | -10/Mines Hauler-Mutant | -9/Materials Hauler-Mutant | -9/Mines Resources | -11 -10 -10 -9 -9 ----------- Run | Scr Mat Min Mat Min Matter Collected 714 | 146 340 17 178 33 Remotely . | . . . . . Salvage Created 741 | . 387 18 300 36 Parts 64 | . 32 6 23 3 Haulers Intercepted . | . . . . . Recyclers Shooed 1 | . . 1 . . Parts Field Recycled . | . . . . . Retrieved Matter . | . . . . . Parts Self-Destructed . | . . . . . Prevented . | . . . . . Kills | -11 -10 -10 -9 -9 ------- Run | Scr Mat Min Mat Min Combat Hostiles Destroyed 38 | . 14 6 13 5 Guns 1 | . 1 . . . Cannons 22 | . 12 3 7 . AOE 15 | . 1 3 6 5 Classes Destroyed 8 | . 5 . 2 1 Worker 3 | . 3 . . . Builder 1 | . . . 1 . Recycler 2 | . 1 . 1 . Watcher 3 | . 1 . 2 . Swarmer 21 | . 9 6 6 . Grunt 12 | . 5 . 5 2 Sentry 2 | . . . 2 . Assembled 3 | . . . . 3 Best Kill Streak 10 | . 5 3 10 5 Combat Bots Only 8 | . 5 3 8 5 Max Kills in Single Turn 5 | . 3 2 2 5 Gunslinging . | . . . . . Exploded 5 | . 1 2 2 5 Melee . | . . . . . Uniques/NPCs Destroyed . | . . . . . Combat | -11 -10 -10 -9 -9 -------- Run | Scr Mat Min Mat Min Damage Taken 1754 | . 203 82 364 1105 Core 481 | . 42 15 48 376 Absorbed by Shields . | . . . . . Core Remaining (%) 88 | 100 . 77 . . Volleys Fired 77 | . 28 15 31 3 Largest 2 | . 2 2 2 2 Hottest 95 | . 95 65 65 53 Shots Fired 125 | . 56 18 47 4 Gun 19 | . 17 . 1 1 Cannon 81 | . 36 15 30 . Launcher 25 | . 3 3 16 3 Special . | . . . . . Kinetic 78 | . 31 15 31 1 Thermal 22 | . 22 . . . Explosive 25 | . 3 3 16 3 Electromagnetic . | . . . . . Robot Hit Streak 22 | . 14 16 21 22 Robot Miss Streak 3 | . 3 . 1 . Penetration Max . | . . . . . Secondary Targets . | . . . . . Shots Hit Robots 73 | . 34 12 23 4 Core Hits 71 | . 20 7 31 13 Critical Hits 2 | . 1 . 1 . Critical Kills 1 | . 1 . . . Critical Parts Destroyed 1 | . . . 1 . Melee Attacks . | . . . . . Impact . | . . . . . Slashing . | . . . . . Piercing . | . . . . . Sneak Attacks . | . . . . . Combat Hostiles . | . . . . . Follow-up Attacks . | . . . . . Damage Inflicted 2448 | . 750 397 1002 299 Guns 132 | . 104 . 14 14 Cannons 996 | . 471 206 319 . Explosions 1309 | . 175 191 658 285 Melee . | . . . . . Ramming 11 | . . . 11 . Kinetic 831 | . 278 206 333 14 Thermal 297 | . 297 . . . Explosive 1309 | . 175 191 658 285 Electromagnetic . | . . . . . Impact . | . . . . . Slashing . | . . . . . Piercing . | . . . . . Highest Corruption . | . . . . . Average Corruption . | . . . . . Corruption Purged . | . . . . . Overload Shots . | . . . . . Overflow Damage 2 | . . . . 2 Projectiles . | . . . . . Explosions 2 | . . . . 2 Melee . | . . . . . Knockbacks 11 | . 2 8 1 . Impact . | . . . . . Kinetic 11 | . 2 8 1 . Secondary . | . . . . . Self-Inflicted Damage 38 | . . . 2 36 Shots 2 | . . . . 2 Rammed 1 | . . . 1 . Targets Rammed 2 | . . . 2 . Kicked 1 | . . . 1 . Crushed . | . . . . . Highest Temperature 276 | . 276 9 12 . Average Temperature 50 | . 69 5 6 . Received Heat Transfer 479 | . 36 . 189 254 Siege Activations . | . . . . . Robots Corrupted . | . . . . . Combat Hostiles . | . . . . . Parts Fried . | . . . . . Impact Corruptions . | . . . . . Robots Melted . | . . . . . Combat Hostiles . | . . . . . Parts Melted 1 | . . . . 1 Heat Transferred 629 | . 629 . . . Parts Sabotaged . | . . . . . Parts Stolen . | . . . . . Parts Stripped . | . . . . . Power Chain Reactions . | . . . . . Missiles Intercepted . | . . . . . Alert | -11 -10 -10 -9 -9 ------- Run | Scr Mat Min Mat Min Peak Influence 418 | . 275 225 418 101 Initial 71 | . . 34 7 71 Average 110 | . 76 61 204 70 Maximum Alert Level 2 | . 1 1 2 . Low Security (%) 76 | 100 96 90 35 100 Level 1 19 | . 3 9 52 . Level 2 3 | . . . 12 . Level 3 . | . . . . . Level 4 . | . . . . . Level 5 . | . . . . . High Security . | . . . . . Max Security . | . . . . . Squads Dispatched 4 | . 2 . 2 . Investigation 2 | . 2 . . . Extermination . | . . . . . Reinforcement 2 | . . . 2 . Assault . | . . . . . Garrison . | . . . . . Intercept . | . . . . . Construction Impeded . | . . . . . Haulers Reinforced . | . . . . . Stealth | -11 -10 -10 -9 -9 --------- Run | Scr Mat Min Mat Min Distress Signals 2 | . 1 . 1 . Communications Jammed . | . . . . . Distress Signals . | . . . . . Times Spotted 65 | . 17 6 21 21 Peak Tracking Total 19 | . 5 3 5 19 Tactical Retreats . | . . . . . Traps | -11 -10 -10 -9 -9 ------- Run | Scr Mat Min Mat Min Traps Triggered 4 | . 4 . . . Indirectly . | . . . . . Trap Hack Attempts . | . . . . . Triggered . | . . . . . Disarmed 1 | . 1 . . . Reprogrammed . | . . . . . Reused . | . . . . . Traps Extracted . | . . . . . Installed . | . . . . . Triggered . | . . . . . Machines | -11 -10 -10 -9 -9 ---------- Run | Scr Mat Min Mat Min Machines Disabled 8 | . 1 4 3 . Max in Single Turn 3 | . 1 3 1 . Machines Sabotaged . | . . . . . Garrisons Compromised . | . . . . . Overloaded Fab Kills . | . . . . . Fab Network Shutdowns . | . . . . . Hacking | -11 -10 -10 -9 -9 --------- Run | Scr Mat Min Mat Min Machines Accessed 4 | . 3 . 1 . Terminals 3 | . 3 . . . Fabricators . | . . . . . Repair Stations 1 | . . . 1 . Recycling Units . | . . . . . Scanalyzers . | . . . . . Garrison Access . | . . . . . Total Hacks 7 | . 5 . 2 . Successful 5 | . 3 . 2 . Failed 2 | . 2 . . . Catastrophic . | . . . . . Database Lockouts . | . . . . . Manual . | . . . . . Terminals 5 | . 5 . . . Fabricators . | . . . . . Repair Stations 2 | . . . 2 . Recycling Units . | . . . . . Scanalyzers . | . . . . . Garrison Access . | . . . . . Terminal Hacks 3 | . 3 . . . Record 1 | . 1 . . . Disarm Traps 1 | . 1 . . . Zone Layout 1 | . 1 . . . Fabricator Hacks . | . . . . . Repair Station Hacks 2 | . . . 2 . Scan Component 1 | . . . 1 . Repair 1 | . . . 1 . Recycling Unit Hacks . | . . . . . Scanalyzer . | . . . . . Garrison Access Hacks . | . . . . . Unauthorized Hacks . | . . . . . Terminals . | . . . . . Fabricators . | . . . . . Repair Stations . | . . . . . Recycling Units . | . . . . . Scanalyzers . | . . . . . Garrison Access . | . . . . . Data Cores Recovered . | . . . . . Used . | . . . . . Hacking Detections 4 | . 3 . 1 . Full Trace Events 1 | . 1 . . . Feedback Events . | . . . . . Feedback Blocked . | . . . . . Robot Schematics Acquired . | . . . . . Robots Built . | . . . . . Matter . | . . . . . Time . | . . . . . Total Robot Build Rating . | . . . . . Part Schematics Acquired . | . . . . . Parts Built . | . . . . . Matter . | . . . . . Time . | . . . . . Total Part Build Rating . | . . . . . Parts Repaired 1 | . . . 1 . Time 16 | . . . 16 . Parts Recycled . | . . . . . Recycled Matter . | . . . . . Retrieved Matter . | . . . . . Retrieved Components . | . . . . . Parts Scanalyzed . | . . . . . Part Schematics Acquired . | . . . . . Parts Damaged . | . . . . . Bothacking | -11 -10 -10 -9 -9 ------------ Run | Scr Mat Min Mat Min Used RIF Installer . | . . . . . Robots Hacked . | . . . . . Non-combat . | . . . . . Combat . | . . . . . Robot Hacks Applied . | . . . . . Relay Couplers Released . | . . . . . Robots Rewired . | . . . . . Allies Hacked . | . . . . . Hacks Repelled . | . . . . . Allies | -11 -10 -10 -9 -9 -------- Run | Scr Mat Min Mat Min Total Allies . | . . . . . Largest Group . | . . . . . Highest-Rated Group . | . . . . . Highest-Rated Ally . | . . . . . Total Orders . | . . . . . Ally Attacks . | . . . . . Total Damage . | . . . . . Kills . | . . . . . Allies Corrupted . | . . . . . Allies Melted . | . . . . . Intel | -11 -10 -10 -9 -9 ------- Run | Scr Mat Min Mat Min Robot Analysis Total . | . . . . . Derelict Logs Recovered 1 | . . 1 . . Drone Launches . | . . . . . Drone Recoveries . | . . . . . Exploration | -11 -10 -10 -9 -9 ------------- Run | Scr Mat Min Mat Min Turns Passed 2228 | 67 934 452 685 90 Spaces Moved 1197 | 50 510 278 317 42 Core 3 | 3 . . . . Treads . | . . . . . Legs 1194 | 47 510 278 317 42 Wheels . | . . . . . Hover . | . . . . . Flight . | . . . . . Fastest Speed 50 | 50 120 150 180 180 Average Speed 160 | 115 156 150 180 188 Slowest Speed 270 | 120 180 150 180 270 Overloaded Moves . | . . . . . Propulsion Burnouts . | . . . . . Robots Hopped . | . . . . . Cave-ins Triggered . | . . . . . Exploration Rate (%) 39 | 3 88 62 29 16 Regions Visited 4 Branch Regions 2 Pre-discovered Areas . | . . . . . Known Exits Taken . | . . . . . Unknown Exits Taken 4 | 1 1 1 1 . Scrap Searched 1 | . . . . 1 Spaces Dug 5 | . . 5 . . Terrain Destroyed 146 | . 26 15 88 17 Melee . | . . . . . Projectile . | . . . . . AOE 146 | . 26 15 88 17 Terrain Rammed . | . . . . . Walls Destroyed . | . . . . . Machines Disabled . | . . . . . Actions | -11 -10 -10 -9 -9 --------- Run | Scr Mat Min Mat Min Total 1375 | 56 592 295 384 48 Wait 36 | . 20 . 16 . Move 1193 | 49 509 277 316 42 Hop . | . . . . . Pick Up 19 | 1 15 1 2 . Fast Attach 11 | 6 4 1 . . Attach 10 | . 1 . 6 3 Detach 5 | . 1 . 4 . Swap 9 | . 4 . 5 . Drop 13 | . 10 1 2 . Fire 77 | . 28 15 31 3 Melee . | . . . . . Ram . | . . . . . Kick 2 | . . . 2 . Crush . | . . . . . Escape Stasis . | . . . . . Rewire . | . . . . . Trap . | . . . . . Miscellaneous . | . . . . . Route ------- -11/Scrapyard -10/Materials (discovered 5 exits: *Mat x3 / [*Min x2]) -10/Mines -9/Materials (discovered 2 exits: [*Min x2]) -9/Mines History --------- Turn | Location | Event 2 | -11/Scrapyard | Discovered new exit (range 16) 68 | -11/Scrapyard | Entered Materials 138 | -10/Materials | Discovered new exit (range 6) 243 | -10/Materials | Discovered new exit (range 15) 304 | -10/Materials | Build established: Mutant 682 | -10/Materials | Discovered new exit (range 10) 884 | -10/Materials | Discovered new exit (range 16) 987 | -10/Materials | Discovered new exit (range 7) 1002 | -10/Materials | Entered Mines 1194 | -10/Mines | Learned Materials trap positions 1239 | -10/Mines | Discovered new exit (range 6) 1248 | -10/Mines | Received a Rocket Launcher from a helpful Derelict 1454 | -10/Mines | Entered Materials 1454 | -9/Materials | Evolved 2 slots: Utility x2 1455 | -9/Materials | Loaded intel: 13 trap records 1519 | -9/Materials | Discovered new exit (range 14) 1750 | -9/Materials | Build established: Hauler-Mutant 1755 | -9/Materials | Destroyed 8 combat bots 1862 | -9/Materials | Repaired Imp. Ion Engine 2011 | -9/Materials | Discovered new exit (range 9) 2139 | -9/Materials | Entered Mines 2184 | -9/Mines | Assembled infested the area 2216 | -9/Mines | Core integrity fell below 50% 2226 | -9/Mines | Core integrity fell below 20% 2229 | -9/Mines | Destroyed by D-53 Grenadier with Mini Grenade Launcher Last Messages --------------- 02207_ as-63909 destroyed. 02207_ Lgt. Nuclear Core melted. 02207_ G-47 Trooper destroyed. 02207_ as-75989 destroyed. 02207_ as-66780 destroyed. [Achievement: Quick And Dirty] 02209_ as-20188 destroyed. 02209_ as-00436 destroyed. 02209_ as-62128 destroyed. 02209_ Imp. Aluminum Leg destroyed. 02209_ Destroyed Imp. Aluminum Leg. 02211_ as-66004 destroyed. 02211_ G-47 Trooper destroyed. 02213_ The unstable cave ceiling collapses. 02213_ Mni. Grenade Launcher destroyed. 02216_ The unstable cave ceiling collapses. 02217_ Imp. Aluminum Leg destroyed. 02218_ The unstable cave ceiling collapses. 02221_ Hvy. Assault Rifle destroyed. 02223_ The unstable cave ceiling collapses. Map ----- +----------------------------------------------------+ | ?????????????????????????????????????????? | | ?????????????????????????????????????????? | | ?????????????????????????????????????????? | | ?????????????????????????????????????????? | | ?????????????????????????????????????????? | | ?????????????????????????????????????????? | | ?????????????????????????????????????????? | | ?????????????????????????????????????????? | | ?????????????????????????????????????????? | | ?????????????????????????????????????????? | | ?????????????????????????????????????????? | | ???????????????????????????%?????????????? | | ?????????????????????????? ?????????????? | | ?????????????????????????? #?????????????? | | ????????????????????????? #?????????????? | | ????????????????????????? #?????????????? | | ????????????????????????? ####??????????? | | ???????##??????????????##a ???????????? | | ??????## ?????????#### # ????????????? | | ?????## #??????## ###???????????? | | ?????# ####### ##??????????? | | ?????# # #??????????? | | ?????# ##??????????? | | ?????# #??????????? | | ??????# ##???????????? | | ?????????# @ a ##????????????? | | ?????????## ##???????????? | | ??????????### ## #???????????? | | ????######### #???????????? | | ????# d ##???????????? | | ????# ############# d #???????????? | | ????# #???????????## #???????????? | | ????# #????????????# ##???????????? | | ????# #????????????## % #????????????? | | ?#### ####??????????## ## ???????????? | | ?# #???????????###? ??????????? | | ?# """ #???????????????#######?????????? | | ?# """ #???????????????????????????????? | | ?# "" #???????????????????????????????? | | ?# #???????????????????????????????? | | ?# #???????????????????????????????? | | ?# #???????????????????????????????? | | ?# #???????????????????????????????? | | ?# #???????????????????????????????? | | ?# #???????????????????????????????? | | ?#########???????????????????????????????? | | ?????????????????????????????????????????? | | ?????????????????????????????????????????? | | ?????????????????????????????????????????? | | ?????????????????????????????????????????? | +----------------------------------------------------+ Best States ------------- Heat Dissipation 28 Energy Generation 12 Energy Capacity 265 Matter Stores 300 Matter Capacity 300 Sight Range 16 Terrain Scan Density 10 Resistance: KI 20 Resistance: TH 20 Resistance: EX 20 Resistance: EM 20 Resistance: I 20 Resistance: S 20 Resistance: P 20 Evasion (%) 40 Targeting Accuracy 10 Offensive Hacking 10 Item Schematics ----------------- None Robot Schematics ------------------ None Fabricated ------------ Nothing Alien Tech Used ----------------- None Achievements -------------- Quick And Dirty Challenges ------------ None Game ------ Seed ComponentInertialShield Manual? 0 Play Time 00:26:35 Cumulative 32.4 hours Start 2021.10.03 @ 12:34:11 End 2021.10.03 @ 13:00:47 Sessions 1 Manual Loads 0 Difficulty Adventurer Special Mode None Game No. 42 Rogue 0 Adventurer 27 Explorer 15 Win Type - Total 2 Types 2/0/0/0/0/0/0/0/0 Lore% 22 Gallery% 46 Achievement% 34 Wizard Run 0 Options --------- ASCII 1 Keyboard 1 Movement Arrows Keybinds 0 Fullscreen 1 Font 18/TerminusBold Map View 76x50 Tactical HUD 1 Map Filters NONE Filters NONE Steam 1 RUN: 712ca4ea-c29a-4db9-861c-32f649039c45